[Event "EYCC Girls-U16 2019"]
[Site "Bratislava"]
[Date "2019.08.05"]
[Round "4.5"]
[White "Malicka, Maria"]
[Black "Dylag, Emilia"]
[Result "1-0"]
[ECO "B34"]
[WhiteElo "2115"]
[BlackElo "2099"]
[Annotator "NA"]
[PlyCount "107"]
[EventDate "2019.08.02"]
[EventType "swiss"]
[EventCountry "SVK"]
[SourceTitle "playchess.com"]
[Source "ChessBase"]
[SourceQuality "1"]
[TimeControl "40/5400+30:1800+30"]

1. e4 {[%emt 0:00:00]} c5 {[%emt 0:00:00]} 2. Nf3 {[%emt 0:00:00]} Nc6 {[%emt 0:00:00]} 3. d4 {[%emt 0:00:00]} cxd4 {[%emt 0:00:03]} 4. Nxd4 {[%emt 0:00:00]} Nf6 {[%emt 0:00:17]} 5. Nc3 {[%emt 0:00:00]} e5 {[%emt 0:00:23]} 6. Ndb5 {[%emt 0:00:00]} d6 {[%emt 0:00:16]} 7. a4 {[%emt 0:00:10]} a6 {[%emt 0:00:55]} 8. Na3 {[%emt 0:00:05]} h6 {[%emt 0:09:06]} 9. Bc4 {[%emt 0:12:49]} Be7 {[%emt 0:03:09]} 10. O-O {[%emt 0:00:53]} O-O {[%emt 0:01:39]} 11. Be3 {[%emt 0:06:26]} Be6 {[%emt 0:16:00]} 12. Qd2 {[%emt 0:14:10]} Rc8 {[%emt 0:08:04]} 13. Rfd1 {[%emt 0:02:24]} Nb4 {[%emt 0:06:10]} 14. b3 {[%emt 0:02:37]} Ng4 {[%emt 0:25:04]} 15. Nd5 {[%emt 0:12:19]} Nxd5 {[%emt 0:02:28]} 16. Bxd5 {[%emt 0:01:42]} Bxd5 {[%emt 0:09:08]} 17. Qxd5 {[%emt 0:00:41]} Nxe3 {[%emt 0:06:05]} 18. fxe3 {[%emt 0:00:13]} Qc7 {[%emt 0:00:48]} 19. Nc4 {[%emt 0:01:25]} Qc6 {[%emt 0:02:09]} 20. a5 {[%emt 0:03:40]} Rfd8 {[%emt 0:02:22]} 21. Rf1 {[%emt 0:12:51]} Qxd5 {[%emt 0:01:09]} 22. exd5 {[%emt 0:00:01]} Rc5 {[%emt 0:01:10]} 23. e4 {[%emt 0:00:08]} Rf8 {[%emt 0:00:57]} 24. Ra4 {[%emt 0:06:24]} f5 {[%emt 0:02:38]} 25. Rxf5 {[%emt 0:02:47]} Rxf5 {[%emt 0:00:06]} 26. exf5 {[%emt 0:00:02]} Rxd5 {[%emt 0:00:22]} 27. Rb4 {[%emt 0:00:59]} Rb5 {[%emt 0:00:42]} 28. Rxb5 {[%emt 0:00:09]} axb5 {[%emt 0:00:03]} 29. Ne3 {[%emt 0:00:11]} b4 {[%emt 0:01:16]} 30. Nd5 {[%emt 0:02:18]} Bd8 {[%emt 0:00:06]} 31. Nxb4 {[%emt 0:04:46]} Bxa5 {[%emt 0:00:05]} 32. Nd5 {[%emt 0:00:02]} Kf7 {[%emt 0:01:12]} 33. Kf2 {[%emt 0:01:17]} Ke8 {[%emt 0:00:48]} 34. b4 {[%emt 0:03:14]} Bd8 {[%emt 0:00:10]} 35. c4 {[%emt 0:03:35]} Kd7 {[%emt 0:00:44]} 36. b5 {[%emt 0:00:09]} Ke8 {[%emt 0:01:01]} 37. g4 {[%emt 0:03:34]} Bh4+ {[%emt 0:00:33]} 38. Kf3 {[%emt 0:00:12]} Kd7 {[%emt 0:00:52]} 39. Ke4 {[%emt 0:00:32]} Bg5 {[%emt 0:00:57]} 40. Nb6+ {[%emt 0:00:00]} Kc7 {[%emt 0:00:00]} 41. Na4 {[%emt 0:14:01]} b6 {[%emt 0:06:02]} 42. Nc3 {[%emt 0:06:27]} Bd8 {[%emt 0:07:12]} 43. Kd5 {[%emt 0:04:26]} Kd7 {[%emt 0:00:58]} 44. Ne4 {[%emt 0:01:49]} Be7 {[%emt 0:00:34]} 45. h3 {[%emt 0:00:34]} Bf8 {[%emt 0:01:40]} 46. h4 {[%emt 0:00:55]} Be7 {[%emt 0:00:59]} 47. g5 {[%emt 0:00:11]} hxg5 {[%emt 0:01:06]} 48. hxg5 {[%emt 0:00:21]} Bf8 {[%emt 0:03:36]} 49. g6 {[%emt 0:01:34]} Be7 {[%emt 0:02:26]} 50. f6 {[%emt 0:00:12]} Bf8 {[%emt 0:00:09]} 51. fxg7 {[%emt 0:00:59]} Bxg7 {[%emt 0:00:05]} 52. Nxd6 {[%emt 0:00:20]} Bf6 {[%emt 0:00:38]} 53. Nf5 {[%emt 0:03:20]} Ke8 {[%emt 0:00:23]} 54. Ke6 {[%emt 0:00:17]} 1-0

[Event "EYCC Girls-U16 2019"]
[Site "Bratislava"]
[Date "2019.08.05"]
[Round "4.6"]
[White "Djidjeli, Sarah"]
[Black "Marcinczyk, Monika"]
[Result "0-1"]
[ECO "B81"]
[WhiteElo "2017"]
[BlackElo "1960"]
[Annotator "NA"]
[PlyCount "116"]
[EventDate "2019.08.02"]
[EventType "swiss"]
[EventCountry "SVK"]
[SourceTitle "playchess.com"]
[Source "ChessBase"]
[SourceQuality "1"]
[TimeControl "40/5400+30:1800+30"]

1. e4 {[%emt 0:00:00]} c5 {[%emt 0:00:00]} 2. Nf3 {[%emt 0:00:00]} e6 {[%emt 0:00:00]} 3. d4 {[%emt 0:00:00]} cxd4 {[%emt 0:00:00]} 4. Nxd4 {[%emt 0:00:00]} Nf6 {[%emt 0:00:00]} 5. Nc3 {[%emt 0:00:00]} d6 {[%emt 0:00:03]} 6. g4 {[%emt 0:00:03]} h6 {[%emt 0:00:11]} 7. h3 {[%emt 0:00:10]} g5 {[%emt 0:00:41]} 8. h4 {[%emt 0:05:09]} Rg8 {[%emt 0:00:23]} 9. hxg5 {[%emt 0:01:00]} hxg5 {[%emt 0:00:06]} 10. Be3 {[%emt 0:00:54]} Nbd7 {[%emt 0:02:05]} 11. Be2 {[%emt 0:10:23]} Ne5 {[%emt 0:01:01]} 12. f3 {[%emt 0:01:01]} a6 {[%emt 0:02:41]} 13. Qd2 {[%emt 0:03:23]} Nfd7 {[%emt 0:00:30]} 14. Nb3 {[%emt 0:04:29]} b5 {[%emt 0:03:04]} 15. Rh5 {[%emt 0:02:40]} Be7 {[%emt 0:05:59]} 16. Qd4 {[%emt 0:06:30]} Qc7 {[%emt 0:07:47]} 17. a4 {[%emt 0:07:28]} Bf6 {[%emt 0:14:09]} 18. Qd2 {[%emt 0:03:23]} Nc4 {[%emt 0:14:45]} 19. Bxc4 {[%emt 0:01:02]} bxc4 {[%emt 0:00:40]} 20. Nd4 {[%emt 0:08:37]} Rb8 {[%emt 0:03:39]} 21. Ra2 {[%emt 0:04:15]} Bxd4 {[%emt 0:06:12]} 22. Bxd4 {[%emt 0:04:15]} Qd8 {[%emt 0:01:42]} 23. Kf2 {[%emt 0:01:38]} Ne5 {[%emt 0:00:52]} 24. Rh6 {[%emt 0:07:00]} Bd7 {[%emt 0:09:34]} 25. a5 {[%emt 0:02:51]} Bc6 {[%emt 0:06:26]} 26. Be3 {[%emt 0:02:11]} f6 {[%emt 0:01:39]} 27. Rh7 {[%emt 0:01:02]} Rb7 {[%emt 0:01:14]} 28. Rh5 {[%emt 0:05:56]} Qb8 {[%emt 0:04:13]} 29. Bb6 {[%emt 0:02:51]} Nd7 {[%emt 0:01:18]} 30. Bd4 {[%emt 0:00:15]} Kf7 {[%emt 0:02:44]} 31. Qe2 {[%emt 0:03:58]} d5 {[%emt 0:01:53]} 32. exd5 {[%emt 0:01:33]} Bxd5 {[%emt 0:00:34]} 33. Nxd5 {[%emt 0:02:08]} exd5 {[%emt 0:00:10]} 34. Qe1 {[%emt 0:01:46]} Ne5 {[%emt 0:03:58]} 35. Qh1 {[%emt 0:01:24]} Nxg4+ {[%emt 0:00:59]} 36. Kg2 {[%emt 0:00:34]} Ne5 {[%emt 0:00:47]} 37. Rh7+ {[%emt 0:00:46]} Ke6 {[%emt 0:01:21]} 38. Bxe5 {[%emt 0:02:26]} Rxh7 {[%emt 0:01:30]} 39. Qxh7 {[%emt 0:00:36]} Kxe5 {[%emt 0:01:53]} 40. Qe7+ {[%emt 0:00:00]} Kf5 {[%emt 0:00:00]} 41. Qh7+ {[%emt 0:16:23]} Ke6 {[%emt 0:05:59]} 42. Ra1 {[%emt 0:03:10]} Kd6 {[%emt 0:05:22]} 43. Rd1 {[%emt 0:03:10]} Qe8 {[%emt 0:04:37]} 44. Rd2 {[%emt 0:01:36]} g4 {[%emt 0:01:15]} 45. f4 {[%emt 0:02:17]} Qg6 {[%emt 0:02:11]} 46. Qxg6 {[%emt 0:02:18]} Rxg6 {[%emt 0:00:02]} 47. Re2 {[%emt 0:01:12]} Rg7 {[%emt 0:06:49]} 48. Kg3 {[%emt 0:02:12]} f5 {[%emt 0:01:18]} 49. c3 {[%emt 0:00:41]} Re7 {[%emt 0:01:14]} 50. Rh2 {[%emt 0:00:19]} Re3+ {[%emt 0:03:19]} 51. Kh4 {[%emt 0:00:24]} Rh3+ {[%emt 0:00:36]} 52. Rxh3 {[%emt 0:00:04]} gxh3 {[%emt 0:00:03]} 53. Kxh3 {[%emt 0:00:04]} d4 {[%emt 0:00:20]} 54. cxd4 {[%emt 0:00:55]} Kd5 {[%emt 0:00:04]} 55. Kh4 {[%emt 0:00:35]} Kxd4 {[%emt 0:00:08]} 56. Kg5 {[%emt 0:00:03]} Ke4 {[%emt 0:00:11]} 57. Kh4 Kd5 58. Kh5 Kd4 0-1

[Event "EYCC Girls-U16 2019"]
[Site "Bratislava"]
[Date "2019.08.05"]
[Round "4.7"]
[White "Yedigaryan, Asya"]
[Black "Afanasieva, Alexandra"]
[Result "0-1"]
[ECO "A06"]
[WhiteElo "1583"]
[BlackElo "2085"]
[Annotator "NA"]
[PlyCount "72"]
[EventDate "2019.08.02"]
[EventType "swiss"]
[EventCountry "SVK"]
[SourceTitle "playchess.com"]
[Source "ChessBase"]
[SourceQuality "1"]
[TimeControl "40/5400+30:1800+30"]

1. g3 {[%emt 0:00:00]} d5 {[%emt 0:00:00]} 2. Nf3 {[%emt 0:00:00]} c6 {[%emt 0:01:34]} 3. b3 {[%emt 0:01:56]} Nf6 {[%emt 0:00:59]} 4. Bb2 {[%emt 0:00:09]} Bg4 {[%emt 0:01:16]} 5. Bg2 {[%emt 0:00:14]} Nbd7 {[%emt 0:00:41]} 6. d3 {[%emt 0:01:28]} e6 {[%emt 0:01:00]} 7. Nbd2 {[%emt 0:00:24]} Bd6 {[%emt 0:03:17]} 8. O-O {[%emt 0:00:31]} O-O {[%emt 0:00:21]} 9. h3 {[%emt 0:02:58]} Bh5 {[%emt 0:00:52]} 10. Qe1 {[%emt 0:03:31]} e5 {[%emt 0:01:51]} 11. e4 {[%emt 0:01:13]} Re8 {[%emt 0:03:08]} 12. Nh4 {[%emt 0:06:45]} dxe4 {[%emt 0:06:23]} 13. dxe4 {[%emt 0:13:37]} Bf8 {[%emt 0:09:55]} 14. Nf5 {[%emt 0:07:04]} Qc7 {[%emt 0:04:28]} 15. g4 {[%emt 0:07:26]} Bg6 {[%emt 0:00:20]} 16. Ng3 {[%emt 0:05:20]} Nc5 {[%emt 0:06:18]} 17. Qe2 {[%emt 0:00:51]} Ne6 {[%emt 0:03:44]} 18. Nc4 {[%emt 0:03:38]} Nd7 {[%emt 0:05:44]} 19. Rad1 {[%emt 0:02:56]} f6 {[%emt 0:04:10]} 20. Nf5 {[%emt 0:08:29]} Nf4 {[%emt 0:01:34]} 21. Qe3 {[%emt 0:03:55]} b5 {[%emt 0:09:14]} 22. Nd2 {[%emt 0:10:35]} Bc5 {[%emt 0:02:03]} 23. Qe1 {[%emt 0:01:01]} Nf8 {[%emt 0:00:36]} 24. Nf3 {[%emt 0:00:59]} N8e6 {[%emt 0:01:58]} 25. Kh1 {[%emt 0:05:53]} h5 {[%emt 0:04:56]} 26. N3h4 {[%emt 0:01:57]} hxg4 {[%emt 0:00:42]} 27. hxg4 {[%emt 0:00:44]} Kf7 {[%emt 0:02:32]} 28. b4 {[%emt 0:01:47]} Rh8 {[%emt 0:03:55]} 29. Kg1 {[%emt 0:03:27]} Nxg2 {[%emt 0:02:10]} 30. Kxg2 {[%emt 0:01:05]} Nf4+ {[%emt 0:00:18]} 31. Kg3 {[%emt 0:00:26]} Bxf5 {[%emt 0:01:12]} 32. Rh1 {[%emt 0:00:54]} Bxg4 {[%emt 0:02:01]} 33. Kxg4 {[%emt 0:00:53]} Qc8+ {[%emt 0:01:59]} 34. Kf3 {[%emt 0:01:08]} Be7 {[%emt 0:01:32]} 35. Nf5 {[%emt 0:00:42]} g6 {[%emt 0:01:42]} 36. Nd6+ {[%emt 0:00:44]} Bxd6 {[%emt 0:00:08]} 0-1

[Event "EYCC Girls-U16 2019"]
[Site "Bratislava"]
[Date "2019.08.05"]
[Round "4.8"]
[White "Hercog, Nusa"]
[Black "Dubovyk, Anastasiia"]
[Result "1-0"]
[ECO "D37"]
[WhiteElo "2053"]
[BlackElo "1824"]
[Annotator "NA"]
[PlyCount "87"]
[EventDate "2019.08.02"]
[EventType "swiss"]
[EventCountry "SVK"]
[SourceTitle "playchess.com"]
[Source "ChessBase"]
[SourceQuality "1"]
[TimeControl "40/5400+30:1800+30"]

1. d4 {[%emt 0:00:00]} d5 {[%emt 0:00:00]} 2. c4 {[%emt 0:00:00]} e6 {[%emt 0:00:00]} 3. Nf3 {[%emt 0:00:00]} Nf6 {[%emt 0:00:00]} 4. Nc3 {[%emt 0:00:07]} Be7 {[%emt 0:00:15]} 5. Bf4 {[%emt 0:00:17]} O-O {[%emt 0:00:23]} 6. e3 {[%emt 0:00:10]} c5 {[%emt 0:01:01]} 7. dxc5 {[%emt 0:00:15]} Bxc5 {[%emt 0:00:11]} 8. a3 {[%emt 0:00:10]} Nc6 {[%emt 0:03:46]} 9. Qc2 {[%emt 0:00:32]} Qa5 {[%emt 0:01:22]} 10. Rd1 {[%emt 0:00:41]} Be7 {[%emt 0:01:19]} 11. Be2 {[%emt 0:00:47]} dxc4 {[%emt 0:09:43]} 12. Bxc4 {[%emt 0:00:13]} a6 {[%emt 0:05:57]} 13. O-O {[%emt 0:07:04]} b5 {[%emt 0:01:53]} 14. Bd3 {[%emt 0:08:11]} Bb7 {[%emt 0:02:41]} 15. Ne4 {[%emt 0:00:39]} h6 {[%emt 0:01:57]} 16. Bd6 {[%emt 0:14:53]} Nxe4 {[%emt 0:13:18]} 17. Bxe4 {[%emt 0:00:12]} Rac8 {[%emt 0:01:38]} 18. Qb1 {[%emt 0:04:15]} Bxd6 {[%emt 0:03:56]} 19. Rxd6 {[%emt 0:00:09]} b4 {[%emt 0:07:00]} 20. Rc1 {[%emt 0:12:05]} Nd8 {[%emt 0:10:18]} 21. Rxc8 {[%emt 0:05:47]} Bxc8 {[%emt 0:00:22]} 22. Qe1 {[%emt 0:02:39]} Bb7 {[%emt 0:17:02]} 23. Bxb7 {[%emt 0:04:17]} Nxb7 {[%emt 0:00:54]} 24. axb4 {[%emt 0:00:17]} Qa4 {[%emt 0:04:49]} 25. Rb6 {[%emt 0:04:31]} Rd8 {[%emt 0:03:43]} 26. Nd4 {[%emt 0:00:27]} e5 {[%emt 0:02:14]} 27. b3 {[%emt 0:05:17]} Qd7 {[%emt 0:02:51]} 28. Nc6 {[%emt 0:12:01]} Qd1 {[%emt 0:03:13]} 29. Qf1 {[%emt 0:00:11]} Qd6 {[%emt 0:01:53]} 30. Qxa6 {[%emt 0:02:10]} Rc8 {[%emt 0:00:37]} 31. h3 {[%emt 0:00:48]} Rc7 {[%emt 0:00:31]} 32. b5 {[%emt 0:08:24]} Nc5 {[%emt 0:00:31]} 33. Qa1 {[%emt 0:00:54]} e4 {[%emt 0:00:38]} 34. Qd4 {[%emt 0:00:58]} Qxd4 {[%emt 0:00:31]} 35. Nxd4 {[%emt 0:00:09]} Ra7 {[%emt 0:00:20]} 36. Rc6 {[%emt 0:01:06]} Nd3 {[%emt 0:00:33]} 37. b6 {[%emt 0:01:23]} Rb7 {[%emt 0:00:25]} 38. Nf5 {[%emt 0:01:06]} Nb4 {[%emt 0:00:38]} 39. Nd6 {[%emt 0:01:45]} Nxc6 {[%emt 0:00:31]} 40. Nxb7 {[%emt 0:00:00]} f5 {[%emt 0:00:00]} 41. Nc5 {[%emt 0:05:00]} Kf7 {[%emt 0:03:33]} 42. b7 {[%emt 0:01:14]} Nb8 {[%emt 0:00:35]} 43. b4 {[%emt 0:00:17]} Ke7 {[%emt 0:00:20]} 44. b5 {[%emt 0:00:34]} 1-0

[Event "EYCC Girls-U16 2019"]
[Site "Bratislava"]
[Date "2019.08.05"]
[Round "4.9"]
[White "Eizaguerri Floris, Maria"]
[Black "Sade, Defne"]
[Result "0-1"]
[ECO "C54"]
[WhiteElo "2099"]
[BlackElo "1897"]
[Annotator "NA"]
[PlyCount "34"]
[EventDate "2019.08.02"]
[EventType "swiss"]
[EventCountry "SVK"]
[SourceTitle "playchess.com"]
[Source "ChessBase"]
[SourceQuality "1"]
[TimeControl "40/5400+30:1800+30"]

1. e4 {[%emt 0:00:00]} e5 {[%emt 0:00:00]} 2. Nf3 {[%emt 0:00:00]} Nc6 {[%emt 0:00:00]} 3. Bc4 {[%emt 0:00:00]} Bc5 {[%emt 0:00:00]} 4. c3 {[%emt 0:00:00]} Nf6 {[%emt 0:00:00]} 5. d3 {[%emt 0:00:00]} a6 {[%emt 0:00:07]} 6. Bb3 {[%emt 0:00:00]} Ba7 {[%emt 0:00:08]} 7. Nbd2 {[%emt 0:02:17]} O-O {[%emt 0:00:13]} 8. O-O {[%emt 0:00:12]} d6 {[%emt 0:00:06]} 9. h3 {[%emt 0:00:10]} Nh5 {[%emt 0:00:39]} 10. Re1 {[%emt 0:01:36]} Qf6 {[%emt 0:00:17]} 11. Nf1 {[%emt 0:02:20]} Qg6 {[%emt 0:05:18]} 12. Nh4 {[%emt 0:07:54]} Qf6 {[%emt 0:00:19]} 13. Nf3 {[%emt 0:00:43]} Qg6 {[%emt 0:01:46]} 14. g4 {[%emt 0:15:12]} Bxg4 {[%emt 0:27:43]} 15. hxg4 {[%emt 0:00:05]} Qxg4+ {[%emt 0:00:05]} 16. Kh1 {[%emt 0:00:13]} Bxf2 {[%emt 0:00:11]} 17. N3h2 {[%emt 0:00:28]} Qg1# {[%emt 0:00:22]} 0-1

[Event "EYCC Girls-U16 2019"]
[Site "Bratislava"]
[Date "2019.08.05"]
[Round "4.10"]
[White "Aubert, Estee"]
[Black "Loskutova, Viktoriya"]
[Result "0-1"]
[ECO "D00"]
[WhiteElo "1979"]
[BlackElo "2019"]
[Annotator "NA"]
[PlyCount "72"]
[EventDate "2019.08.02"]
[EventType "swiss"]
[EventCountry "SVK"]
[SourceTitle "playchess.com"]
[Source "ChessBase"]
[SourceQuality "1"]
[TimeControl "40/5400+30:1800+30"]

1. d4 {[%emt 0:00:00]} d5 {[%emt 0:00:00]} 2. Nc3 {[%emt 0:00:00]} Nf6 {[%emt 0:00:38]} 3. Bf4 {[%emt 0:00:00]} a6 {[%emt 0:10:04]} 4. e3 {[%emt 0:00:10]} c5 {[%emt 0:06:25]} 5. dxc5 {[%emt 0:00:23]} Nc6 {[%emt 0:09:20]} 6. Nf3 {[%emt 0:00:13]} e6 {[%emt 0:00:43]} 7. Na4 {[%emt 0:00:34]} Nd7 {[%emt 0:02:17]} 8. Be2 {[%emt 0:02:08]} Nxc5 {[%emt 0:00:19]} 9. Nxc5 {[%emt 0:00:06]} Bxc5 {[%emt 0:00:04]} 10. O-O {[%emt 0:02:16]} O-O {[%emt 0:00:31]} 11. Ne5 {[%emt 0:01:48]} f6 {[%emt 0:11:05]} 12. Nxc6 {[%emt 0:06:38]} bxc6 {[%emt 0:00:29]} 13. c4 {[%emt 0:02:20]} e5 {[%emt 0:01:12]} 14. Bg3 {[%emt 0:00:17]} Be6 {[%emt 0:00:19]} 15. Qa4 {[%emt 0:02:11]} Qb6 {[%emt 0:02:13]} 16. b4 {[%emt 0:17:09]} Be7 {[%emt 0:02:45]} 17. Rfc1 {[%emt 0:02:19]} Rfc8 {[%emt 0:19:07]} 18. a3 {[%emt 0:02:31]} a5 {[%emt 0:02:44]} 19. b5 {[%emt 0:04:42]} cxb5 {[%emt 0:09:51]} 20. cxb5 {[%emt 0:00:25]} Bc5 {[%emt 0:01:07]} 21. Bd3 {[%emt 0:07:15]} Bxe3 {[%emt 0:06:40]} 22. Rc6 {[%emt 0:04:56]} Rxc6 {[%emt 0:00:09]} 23. bxc6 {[%emt 0:00:03]} Bd4 {[%emt 0:06:40]} 24. Rb1 {[%emt 0:02:58]} Qc5 {[%emt 0:00:20]} 25. Rb7 {[%emt 0:12:38]} Rc8 {[%emt 0:03:57]} 26. c7 {[%emt 0:00:15]} Kf8 {[%emt 0:01:10]} 27. Qc2 {[%emt 0:12:57]} Qxc2 {[%emt 0:01:16]} 28. Bxc2 {[%emt 0:00:03]} h6 {[%emt 0:01:26]} 29. Kf1 {[%emt 0:01:57]} Bc5 {[%emt 0:00:26]} 30. Rb5 {[%emt 0:05:32]} Bxa3 {[%emt 0:00:59]} 31. Rxa5 {[%emt 0:00:06]} Rxc7 {[%emt 0:00:22]} 32. Bb3 {[%emt 0:01:01]} Bb4 {[%emt 0:00:08]} 33. Ra8+ {[%emt 0:06:47]} Ke7 {[%emt 0:00:20]} 34. f3 {[%emt 0:01:57]} d4 {[%emt 0:00:38]} 35. Ba4 {[%emt 0:01:05]} Rc1+ {[%emt 0:00:16]} 36. Kf2 {[%emt 0:00:42]} Be1+ {[%emt 0:00:06]} 0-1

[Event "EYCC Girls-U16 2019"]
[Site "Bratislava"]
[Date "2019.08.05"]
[Round "4.11"]
[White "Kuzich, Aryna"]
[Black "Duran, Esma Doga"]
[Result "1-0"]
[ECO "C01"]
[WhiteElo "1940"]
[BlackElo "2096"]
[Annotator "NA"]
[PlyCount "119"]
[EventDate "2019.08.02"]
[EventType "swiss"]
[EventCountry "SVK"]
[SourceTitle "playchess.com"]
[Source "ChessBase"]
[SourceQuality "1"]
[TimeControl "40/5400+30:1800+30"]

1. e4 {[%emt 0:00:00]} e6 {[%emt 0:00:00]} 2. d4 {[%emt 0:00:00]} d5 {[%emt 0:00:00]} 3. exd5 {[%emt 0:00:12]} exd5 {[%emt 0:00:00]} 4. Nf3 {[%emt 0:00:39]} Bd6 {[%emt 0:00:08]} 5. Bd3 {[%emt 0:02:24]} Nc6 {[%emt 0:00:24]} 6. c3 {[%emt 0:01:39]} Bg4 {[%emt 0:00:24]} 7. Be3 {[%emt 0:06:08]} Nge7 {[%emt 0:01:20]} 8. h3 {[%emt 0:09:26]} Bh5 {[%emt 0:01:15]} 9. Nbd2 {[%emt 0:03:55]} Qd7 {[%emt 0:00:23]} 10. Qc2 {[%emt 0:02:19]} O-O-O {[%emt 0:01:29]} 11. O-O-O {[%emt 0:12:16]} h6 {[%emt 0:16:07]} 12. g4 {[%emt 0:20:15]} Bg6 {[%emt 0:00:03]} 13. Nb3 {[%emt 0:00:31]} b6 {[%emt 0:10:26]} 14. Ba6+ {[%emt 0:04:51]} Kb8 {[%emt 0:00:01]} 15. Qe2 {[%emt 0:00:37]} Ka8 {[%emt 0:04:17]} 16. Ne5 {[%emt 0:06:14]} Nxe5 {[%emt 0:08:26]} 17. dxe5 {[%emt 0:00:16]} Bxe5 {[%emt 0:00:09]} 18. f4 {[%emt 0:03:59]} Qa4 {[%emt 0:08:12]} 19. f5 {[%emt 0:03:59]} Qxa2 {[%emt 0:23:40]} 20. Kc2 {[%emt 0:01:19]} Nxf5 {[%emt 0:10:06]} 21. gxf5 {[%emt 0:00:19]} Bxf5+ {[%emt 0:00:02]} 22. Bd3 {[%emt 0:00:29]} Bxd3+ {[%emt 0:01:52]} 23. Qxd3 {[%emt 0:00:31]} Qa4 {[%emt 0:05:34]} 24. Ra1 {[%emt 0:03:42]} Qe4 {[%emt 0:00:26]} 25. Qxe4 {[%emt 0:00:25]} dxe4 {[%emt 0:00:01]} 26. Ra4 {[%emt 0:00:07]} f5 {[%emt 0:01:04]} 27. Rha1 {[%emt 0:00:23]} Kb7 {[%emt 0:00:47]} 28. Rxa7+ {[%emt 0:00:44]} Kc6 {[%emt 0:00:19]} 29. Bd4 {[%emt 0:00:54]} Rhe8 {[%emt 0:03:12]} 30. Bxe5 {[%emt 0:03:12]} Rxe5 {[%emt 0:00:02]} 31. Nd4+ {[%emt 0:00:37]} Kd7 {[%emt 0:01:10]} 32. Rd1 {[%emt 0:00:52]} Rd5 {[%emt 0:01:27]} 33. Nxf5 {[%emt 0:01:38]} Rxd1 {[%emt 0:01:51]} 34. Kxd1 {[%emt 0:00:06]} Kc8+ {[%emt 0:01:25]} 35. Ke2 {[%emt 0:00:20]} Rd3 {[%emt 0:00:47]} 36. Ne3 {[%emt 0:00:33]} b5 {[%emt 0:00:28]} 37. Ra8+ {[%emt 0:00:40]} Kd7 {[%emt 0:00:15]} 38. Rg8 {[%emt 0:00:31]} g5 {[%emt 0:00:24]} 39. Rb8 {[%emt 0:01:18]} c6 {[%emt 0:00:40]} 40. Rh8 {[%emt 0:00:00]} b4 {[%emt 0:00:00]} 41. Rh7+ {[%emt 0:04:33]} Kd8 {[%emt 0:04:09]} 42. Rxh6 {[%emt 0:02:32]} bxc3 {[%emt 0:00:36]} 43. bxc3 {[%emt 0:03:02]} Rxc3 {[%emt 0:00:11]} 44. Re6 {[%emt 0:01:24]} Rc1 {[%emt 0:00:33]} 45. Kf2 {[%emt 0:00:53]} Kd7 {[%emt 0:02:12]} 46. Rxe4 {[%emt 0:00:41]} Kd6 {[%emt 0:00:23]} 47. Rg4 {[%emt 0:02:09]} Rc5 {[%emt 0:00:31]} 48. Re4 {[%emt 0:02:44]} Rc3 {[%emt 0:01:14]} 49. Kf3 {[%emt 0:01:44]} Rc1 {[%emt 0:00:52]} 50. Kg4 {[%emt 0:01:26]} Rg1+ {[%emt 0:00:05]} 51. Kh5 {[%emt 0:01:11]} Rh1 {[%emt 0:01:55]} 52. Nf5+ {[%emt 0:01:58]} Kd5 {[%emt 0:00:01]} 53. Re3 {[%emt 0:00:12]} c5 {[%emt 0:04:26]} 54. Kxg5 {[%emt 0:02:55]} c4 {[%emt 0:01:39]} 55. h4 {[%emt 0:02:09]} Rc1 {[%emt 0:00:14]} 56. h5 {[%emt 0:06:49]} c3 {[%emt 0:00:55]} 57. Rg3 {[%emt 0:01:09]} c2 {[%emt 0:01:08]} 58. Ne3+ {[%emt 0:01:02]} Ke4 {[%emt 0:00:37]} 59. h6 {[%emt 0:00:50]} Kd3 {[%emt 0:00:31]} 60. Nxc2+ {[%emt 0:00:27]} 1-0

[Event "EYCC Girls-U16 2019"]
[Site "Bratislava"]
[Date "2019.08.05"]
[Round "4.12"]
[White "Ilyina, Lada"]
[Black "Kvendseth, Thyra"]
[Result "0-1"]
[ECO "E87"]
[WhiteElo "2048"]
[BlackElo "1977"]
[Annotator "NA"]
[PlyCount "120"]
[EventDate "2019.08.02"]
[EventType "swiss"]
[EventCountry "SVK"]
[SourceTitle "playchess.com"]
[Source "ChessBase"]
[SourceQuality "1"]
[TimeControl "40/5400+30:1800+30"]

1. d4 {[%emt 0:00:00]} Nf6 {[%emt 0:00:00]} 2. c4 {[%emt 0:00:00]} g6 {[%emt 0:00:00]} 3. Nc3 {[%emt 0:00:00]} Bg7 {[%emt 0:00:00]} 4. e4 {[%emt 0:00:00]} d6 {[%emt 0:00:00]} 5. f3 {[%emt 0:00:30]} O-O {[%emt 0:00:00]} 6. Be3 {[%emt 0:00:17]} e5 {[%emt 0:00:43]} 7. d5 {[%emt 0:00:24]} Nh5 {[%emt 0:08:24]} 8. Qd2 {[%emt 0:07:50]} f5 {[%emt 0:04:00]} 9. O-O-O {[%emt 0:02:18]} Nf6 {[%emt 0:07:41]} 10. Bg5 {[%emt 0:02:51]} Nbd7 {[%emt 0:09:35]} 11. Bd3 {[%emt 0:11:45]} f4 {[%emt 0:07:03]} 12. Bh4 {[%emt 0:01:06]} Nc5 {[%emt 0:03:06]} 13. Bc2 {[%emt 0:00:38]} Nfxe4 {[%emt 0:08:47]} 14. Bxd8 {[%emt 0:08:09]} Nxd2 {[%emt 0:00:07]} 15. Be7 {[%emt 0:00:52]} Nxc4 {[%emt 0:09:09]} 16. Bxf8 {[%emt 0:00:07]} Bxf8 {[%emt 0:00:01]} 17. g4 {[%emt 0:08:52]} c6 {[%emt 0:14:35]} 18. b4 {[%emt 0:10:06]} Nd7 {[%emt 0:00:51]} 19. Bb3 {[%emt 0:01:03]} Ndb6 {[%emt 0:00:29]} 20. Nh3 {[%emt 0:09:45]} Kg7 {[%emt 0:01:49]} 21. Ng5 {[%emt 0:05:44]} Ne3 {[%emt 0:02:19]} 22. Rd3 {[%emt 0:01:24]} cxd5 {[%emt 0:00:30]} 23. Nxd5 {[%emt 0:00:50]} Nbxd5 {[%emt 0:00:19]} 24. Bxd5 {[%emt 0:00:05]} Nxd5 {[%emt 0:00:12]} 25. Rxd5 {[%emt 0:00:07]} h6 {[%emt 0:00:32]} 26. Ne4 {[%emt 0:00:04]} Be6 {[%emt 0:00:20]} 27. Rd2 {[%emt 0:00:15]} Rc8+ {[%emt 0:01:33]} 28. Rc2 {[%emt 0:01:22]} Rxc2+ {[%emt 0:04:29]} 29. Kxc2 {[%emt 0:00:02]} b6 {[%emt 0:00:39]} 30. a3 {[%emt 0:00:36]} d5 {[%emt 0:00:49]} 31. Nf2 {[%emt 0:01:36]} Bd7 {[%emt 0:01:50]} 32. Kb3 {[%emt 0:03:36]} Bb5 {[%emt 0:00:37]} 33. Re1 {[%emt 0:00:09]} Kf6 {[%emt 0:00:30]} 34. Kc3 {[%emt 0:02:14]} Bd6 {[%emt 0:01:23]} 35. Kd2 {[%emt 0:05:35]} Bc4 {[%emt 0:02:50]} 36. Nd3 {[%emt 0:02:17]} Ba6 {[%emt 0:01:41]} 37. h4 {[%emt 0:02:54]} Bb7 {[%emt 0:01:30]} 38. Nf2 {[%emt 0:00:09]} Ke6 {[%emt 0:06:24]} 39. h5 {[%emt 0:06:27]} g5 {[%emt 0:01:00]} 40. Kd3 {[%emt 0:00:00]} Ba6+ {[%emt 0:00:00]} 41. Kc3 {[%emt 0:06:07]} Bb5 {[%emt 0:02:10]} 42. Kb3 {[%emt 0:04:24]} Bc4+ {[%emt 0:05:35]} 43. Kc3 {[%emt 0:01:49]} a5 {[%emt 0:04:32]} 44. Nd1 {[%emt 0:06:04]} axb4+ {[%emt 0:01:20]} 45. axb4 {[%emt 0:00:03]} b5 {[%emt 0:00:18]} 46. Nb2 {[%emt 0:01:58]} d4+ {[%emt 0:00:33]} 47. Kc2 {[%emt 0:00:02]} Bxb4 {[%emt 0:00:12]} 48. Ra1 {[%emt 0:00:05]} Be2 {[%emt 0:01:44]} 49. Nd3 {[%emt 0:00:54]} Bd6 {[%emt 0:00:40]} 50. Ne1 {[%emt 0:00:17]} d3+ {[%emt 0:02:11]} 51. Nxd3 {[%emt 0:01:35]} Bxf3 {[%emt 0:00:05]} 52. Nf2 {[%emt 0:00:57]} e4 {[%emt 0:00:38]} 53. Ra7 {[%emt 0:00:34]} e3 {[%emt 0:00:39]} 54. Nd3 {[%emt 0:00:31]} Be4 {[%emt 0:04:00]} 55. Kc3 {[%emt 0:00:55]} e2 {[%emt 0:01:07]} 56. Ra1 {[%emt 0:01:06]} Bxd3 {[%emt 0:01:13]} 57. Kxd3 {[%emt 0:00:07]} f3 {[%emt 0:00:04]} 58. Ke3 {[%emt 0:00:45]} Bb4 {[%emt 0:00:18]} 59. Kf2 {[%emt 0:00:29]} e1=Q+ {[%emt 0:00:09]} 60. Rxe1+ {[%emt 0:00:08]} Bxe1+ {[%emt 0:00:02]} 0-1